[Event "26th Womens ECCC 2022"]
[Site "Mayrhofen"]
[Date "2022.10.03"]
[Round "1.1"]
[White "Muzychuk, Mariya"]
[Black "Muzychuk, Anna"]
[Result "1/2-1/2"]
[ECO "D44"]
[WhiteElo "2527"]
[BlackElo "2534"]
[Annotator "TA"]
[PlyCount "43"]
[EventDate "2022.10.03"]
[EventType "team-tourn"]
[EventCountry "AUT"]
[SourceTitle "playchess.com"]
[Source "ChessBase"]
[SourceQuality "1"]
[TimeControl "40/5400+30:1800+30"]

{[%evp 22,43,26,16,21,14,18,0,6,-17,-7,-2,0,0,0,-14,0,0,0,0,0,0,0,0]} 1. d4 {[%emt 0:00:05]} d5 {[%emt 0:00:08]} 2. c4 {[%emt 0:00:31]} c6 {[%emt 0:00:07]} 3. Nf3 {[%emt 0:00:27]} Nf6 {[%emt 0:00:09]} 4. Nc3 {[%emt 0:00:42]} e6 {[%emt 0:00:11]} 5. Bg5 {[%emt 0:00:38]} dxc4 {[%emt 0:01:12]} 6. e4 {[%emt 0:05:38]} b5 {[%emt 0:00:28]} 7. e5 {[%emt 0:00:13]} h6 {[%emt 0:00:08]} 8. Bh4 {[%emt 0:00:21]} g5 {[%emt 0:00:09]} 9. Nxg5 {[%emt 0:00:33]} hxg5 {[%emt 0:00:08]} 10. Bxg5 {[%emt 0:00:05]} Nbd7 {[%emt 0:00:08][%cal Bb8d7,Bd7f6,Bf6d5,Bd5f4][%mdl 32]} 11. exf6 {[%emt 0:00:57]} Bb7 {[%emt 0:00:45]} 12. h4 {[%emt 0:02:09]} Nxf6 {[%emt 0:00:50] The position is equal. D44: Semi-Slav: Botvinnik System.} 13. Qf3 {[%emt 0:00:45]} Be7 {[%emt 0:00:12]} 14. O-O-O {[%emt 0:00:21]} Nd5 {[%emt 0:01:32] [#]} 15. Ne4 $146 {[%emt 0:01:40]} ({Predecessor:} 15. Bxe7 Qxe7 16. Ne4 O-O-O 17. g3 Nb4 {½-½ (17) Ralls,R (2503)-Noble,M (2456) LSS email 2011}) 15... Bxg5+ {[%emt 0:02:56]} 16. Nxg5 {[%emt 0:00:12][%csl Gg5][%cal Rf3f7] [#]} Qf6 {[%emt 0:00:05]} 17. Rh3 {[%emt 0:01:58]} a5 {[%emt 0:00:29]} 18. Qe4 {[%emt 0:01:09]} Nf4 {[%emt 0:00:29]} 19. Qf3 {[%emt 0:00:57]} Nd5 {[%emt 0:00:12]} 20. Qe4 {[%emt 0:00:34]} Nf4 {[%emt 0:00:19]} 21. Qf3 {[%emt 0:00:19]} Nd5 {[%emt 0:00:09]} 22. Qe4 {[%emt 0:00:31] A balanced but interesting game.  Weighted Error Value: White=0.05 (flawless) /Black=0.02 (flawless)} 1/2-1/2

[Event "26th Womens ECCC 2022"]
[Site "Mayrhofen"]
[Date "2022.10.03"]
[Round "1.2"]
[White "Stefanova, Antoaneta"]
[Black "Unuk, Laura"]
[Result "1/2-1/2"]
[ECO "D00"]
[WhiteElo "2440"]
[BlackElo "2297"]
[Annotator "TA"]
[PlyCount "40"]
[EventDate "2022.10.03"]
[EventType "team-tourn"]
[EventCountry "AUT"]
[SourceTitle "playchess.com"]
[Source "ChessBase"]
[SourceQuality "1"]
[TimeControl "40/5400+30:1800+30"]

{[%evp 9,40,-18,-13,-14,13,7,95,107,105,66,63,57,60,-50,-35,-39,-43,-41,-45,-67,-26,-63,-68,-58,-58,-50,-33,-34,0,-57,0,-29,0]} 1. d4 {[%emt 0:00:06]} d5 {[%emt 0:00:10]} 2. Bf4 {[%emt 0:02:23]} Nf6 {[%emt 0:00:33]} 3. Nc3 {[%emt 0:00:46]} a6 {[%emt 0:01:30]} 4. e3 {[%emt 0:00:59]} e6 {[%emt 0:04:45]} 5. g4 {[%emt 0:01:31]} Bb4 {[%emt 0:06:34]} 6. Nge2 {[%emt 0:08:05] D00: 1 d4 d5: Unusual lines.} Ne4 {[%emt 0:08:00][%cal Oe6e5]} 7. Bg2 {[%emt 0:04:12] [#]} Bd7 $146 {[%emt 0:13:30]} (7... Nxc3 $11 8. Nxc3 (8. bxc3 Be7 $11) 8... O-O) ({Predecessor:} 7... Nxc3 8. Nxc3 Bd6 9. Qf3 b5 10. e4 b4 11. Ne2 Bb7 12. e5 Be7 13. h4 a5 {1-0 (44) Luukkonen,T (2285)-Sipila,V (2410) Helsinki 2022}) 8. Bxe4 $16 {[%emt 0:11:57] White is better.} dxe4 {[%emt 0:00:12]} 9. d5 {[%emt 0:04:41]} O-O $1 {[%emt 0:16:20]} 10. Qd4 {[%emt 0:04:59]} c5 {[%emt 0:00:19]} 11. dxc6 {[%emt 0:05:44]} ({White should try} 11. Qxe4 $14 exd5 12. Qxd5) 11... Nxc6 $15 {[%emt 0:01:14]} 12. Qxe4 {[%emt 0:00:27]} e5 {[%emt 0:00:28]} 13. Bg3 {[%emt 0:05:06]} Be6 {[%emt 0:01:28] [#] aiming for ...Bd5.} 14. O-O {[%emt 0:04:44]} Qc8 {[%emt 0:01:37]} 15. f3 {[%emt 0:04:15]} f5 $1 {[%emt 0:05:08]} 16. gxf5 {[%emt 0:00:05]} Bxf5 {[%emt 0:00:08]} 17. Qc4+ {[%emt 0:00:51]} Be6 {[%emt 0:06:25][%mdl 1024] Black has compensation.} (17... Kh8 $5 {[%cal Rb7b5]}) 18. Qe4 {[%emt 0:09:02]} Bf5 {[%emt 0:01:42] This bishop pair is nice.} 19. Qc4+ {[%emt 0:03:03]} Be6 {[%emt 0:01:09]} 20. Qe4 {[%emt 0:00:05]} Bf5 {Weighted Error Value: White=0.13 (very precise) /Black=0.22 (precise)} 1/2-1/2

[Event "26th Womens ECCC 2022"]
[Site "Mayrhofen"]
[Date "2022.10.03"]
[Round "1.3"]
[White "Urh, Zala"]
[Black "Cramling, Pia"]
[Result "1/2-1/2"]
[ECO "E15"]
[WhiteElo "2221"]
[BlackElo "2459"]
[Annotator "TA"]
[PlyCount "180"]
[EventDate "2022.10.03"]
[EventType "team-tourn"]
[EventCountry "AUT"]
[SourceTitle "playchess.com"]
[Source "ChessBase"]
[SourceQuality "1"]
[TimeControl "40/5400+30:1800+30"]

{[%evp 19,180,8,4,6,22,16,30,7,31,4,0,-8,-16,-27,-35,-35,0,0,13,6,31,7,28,0,0,-32,0,-6,0,-138,-146,-132,-56,-313,-169,-206,-195,-295,-77,-82,-90,-108,-108,-245,-131,-134,-131,-270,-33,-31,-29,-127,-133,-130,-106,-75,-90,-89,-73,-218,-226,-210,-91,-81,-83,-88,-58,-83,-85,-108,-97,-107,-107,-110,-111,-105,-93,-99,-93,-93,-93,-216,-208,-362,-119,-119,-104,-119,-119,-119,-119,-127,-106,-127,-127,-127,-127,-127,-127,-127,-40,-119,-102,-103,-104,-119,-119,-119,-119,-134,-134,-134,-119,-119,-87,-119,-119,-119,-70,-532,-480,-1398,-1227,-955,-527,-431,-113,-162,-134,-415,-106,-355,-127,-128,-143,-143,-62,-69,-69,-106,-8,-8,-8,-8,-8,-8,-8,-8,-8,-8,-8,-8,-8,-8,-8,-8,0,-8,0,0,0,0,0]} 1. d4 {[%emt 0:00:08]} Nf6 {[%emt 0:00:10]} 2. c4 {[%emt 0:00:07]} e6 {[%emt 0:00:10]} 3. Nf3 {[%emt 0:00:07]} b6 {[%emt 0:00:11]} 4. g3 {[%emt 0:00:15]} Ba6 {[%emt 0:00:18]} 5. b3 {[%emt 0:02:15]} Bb4+ {[%emt 0:01:07]} 6. Bd2 {[%emt 0:00:46]} Be7 {[%emt 0:00:23]} 7. Nc3 {[%emt 0:00:31]} d5 {[%emt 0:01:08]} 8. cxd5 {[%emt 0:04:26]} exd5 {[%emt 0:00:12]} 9. Bg2 {[%emt 0:01:20]} Bb7 {[%emt 0:01:20]} 10. O-O {[%emt 0:01:37]} O-O {[%emt 0:00:53]} 11. a3 {[%emt 0:16:51] E15: Queen's Indian: 4 g3 sidelines, 4 g3 Ba6 and 4 g3 Bb7 early deviations.} a5 {[%emt 0:22:49]} 12. Qc2 {[%emt 0:04:48]} h6 {[%emt 0:01:47] [#]} 13. Rfc1 $146 {[%emt 0:06:06] White has an edge.} ({Predecessor:} 13. Ne5 Na6 14. Rfd1 Qc8 15. Qb2 Rd8 16. Rac1 Qe6 17. Nd3 Rab8 18. Bf4 g5 19. Be5 {½-½ (101) Gyimesi,Z (2539)-Lau,R (2495) Fuerth 2000}) 13... Na6 {[%emt 0:03:02]} 14. Nd1 {[%emt 0:07:29][%cal Ob3b4,Bc3d1,Bd1e3,Be3f5][%mdl 32]} c5 {[%emt 0:08:30]} 15. dxc5 {[%emt 0:13:08]} bxc5 {[%emt 0:00:16]} 16. Ne3 {[%emt 0:04:14]} Re8 {[%emt 0:01:42]} 17. Rd1 {[%emt 0:04:34]} Qc7 {[%emt 0:14:37]} 18. Rac1 {[%emt 0:08:31]} Qb6 {[%emt 0:08:25]} 19. Ne5 {[%emt 0:10:10]} Rac8 {[%emt 0:09:14]} 20. Nd3 {[%emt 0:02:29]} Bd6 {[%emt 0:03:02]} 21. Nf5 {[%emt 0:02:00][%cal Od2a5]} Bf8 $1 {[%emt 0:01:52]} 22. Nf4 {[%emt 0:01:33]} Nc7 {[%emt 0:01:53]} 23. Bc3 {[%emt 0:04:32]} Ne4 {[%emt 0:04:20]} 24. Ba1 {[%emt 0:02:32]} (24. Ne3 $11) 24... d4 $1 $17 {[%emt 0:05:06]} 25. b4 {[%emt 0:01:51]} Nb5 {[%emt 0:04:17]} (25... axb4 $17 {Threatens to win with ...Nb5.} 26. axb4 Nb5) 26. bxc5 $2 {[%emt 0:00:30][%mdl 8192]} (26. bxa5 $15 Qxa5 27. e3) 26... Bxc5 {[%emt 0:00:14]} (26... Rxc5 $142 27. Qb1 Rxf5 28. Bxd4 Qa6) 27. Qd3 {[%emt 0:00:27]} Nbc3 {[%emt 0:01:23][%cal Oe4f2] Against Rb1. Hoping for ...Nxf2!} 28. Bxc3 {[%emt 0:00:39]} (28. Nxd4 $142 Ba6 29. Rxc3 Bxd3 30. Rcxd3) 28... Nxc3 $2 {[%emt 0:00:33]} (28... dxc3 $19 29. e3 Qf6) 29. Bxb7 {[%emt 0:00:24]} Qxb7 {[%emt 0:00:21]} 30. Re1 {[%emt 0:00:26]} Qe4 $1 {[%emt 0:02:35]} 31. Ra1 {[%emt 0:00:35]} (31. Qxe4 $17 Rxe4 32. Kf1) 31... a4 {[%emt 0:01:22]} (31... g6 $1 $19 {[%cal Rg6f5]} 32. Qxe4 Rxe4) 32. Qxe4 {[%emt 0:00:32]} Rxe4 {[%emt 0:00:07]} ({And not} 32... Nxe4 33. Nd3 $15) 33. Kf1 {[%emt 0:00:10]} (33. e3 $17 {might work better.}) 33... Rb8 $2 {[%emt 0:01:26]} (33... g6 $1 $19 {[%cal Rg6f5]} 34. Nxh6+ Kg7) 34. Nd3 $15 {[%emt 0:00:21]} Ba7 $36 {[%emt 0:00:49][%mdl 2048] Black has some pressure.} 35. e3 {[%emt 0:00:55]} (35. Nh4 $11 {keeps the balance.}) 35... dxe3 $17 {[%emt 0:00:22]} 36. Nxe3 {[%emt 0:00:09]} Bxe3 {[%emt 0:00:44]} 37. Rxe3 {[%emt 0:00:27]} Rxe3 {[%emt 0:00:14]} 38. fxe3 {[%emt 0:00:01][%mdl 4096] Endgame KRN-KRN} Rd8 {[%emt 0:01:30]} 39. Nb2 {[%emt 0:01:31]} (39. Ne5 $17) 39... Rd2 $19 {[%emt 0:00:29][%csl LRb2,LRh2]} 40. Rc1 {[%emt 0:00:23]} Nd5 {[%emt 0:00:42]} ({Inferior is} 40... Rxh2 41. Rxc3 Rxb2 42. Rc4 $15) (40... Rxb2 $19 41. Rxc3 Rb3 42. Rc8+ Kh7) 41. Nxa4 $17 {[%emt 0:04:40]} Nxe3+ {[%emt 0:04:56]} 42. Kg1 {[%emt 0:03:24]} Rg2+ {[%emt 0:00:26]} 43. Kh1 {[%emt 0:00:04]} Ra2 {[%emt 0:00:28]} 44. Nc5 {[%emt 0:03:46]} Rxa3 {[%emt 0:00:57]} 45. Re1 {[%emt 0:00:45]} g5 {[%emt 0:01:06]} 46. Kg1 {[%emt 0:02:10]} Kg7 {[%emt 0:05:34]} 47. Re2 {[%emt 0:02:45]} Nf5 {[%emt 0:00:51]} 48. Kf2 {[%emt 0:02:13]} Nd4 {[%emt 0:01:37]} 49. Rb2 {[%emt 0:00:42]} h5 {[%emt 0:02:47]} 50. h3 {[%emt 0:02:36]} (50. Rd2 $17) 50... h4 $19 {[%emt 0:03:10]} 51. Ne4 {[%emt 0:04:20]} (51. gxh4 {only move.} Rxh3 52. Rb7 Rxh4 53. Nd3) 51... hxg3+ $2 {[%emt 0:06:17]} (51... Rf3+ $19 {has better winning chances.} 52. Kg1 f5 53. Rb7+ Kf8) 52. Nxg3 $17 {[%emt 0:00:59]} Kg6 {[%emt 0:00:42]} 53. Rb4 {[%emt 0:03:50]} Ra2+ {[%emt 0:02:45]} 54. Kf1 {[%emt 0:00:13]} Nf3 {[%emt 0:00:57]} 55. Ne2 {[%emt 0:01:48]} Nh4 {[%emt 0:01:10]} 56. Rb3 {[%emt 0:00:59]} Nf5 {[%emt 0:02:00][%cal Oa2e2]} 57. Rc3 {[%emt 0:00:45]} f6 {[%emt 0:00:46]} 58. Rd3 {[%emt 0:00:13]} Ng7 {[%emt 0:00:19]} 59. Rb3 {[%emt 0:01:10]} Nh5 {[%emt 0:00:12]} (59... Ra6 $17 60. Nd4 Ra4) 60. Rf3 {[%emt 0:00:40]} (60. Rb4 $1 $15) 60... f5 {[%emt 0:00:35]} 61. Rb3 {[%emt 0:00:26]} Ra6 {[%emt 0:00:22]} 62. Kf2 {[%emt 0:00:20]} Nf6 {[%emt 0:00:09]} 63. Kf3 {[%emt 0:01:53]} Ne4 {[%emt 0:00:27]} 64. Rd3 {[%emt 0:00:19] Inhibits Nd2+.} Ra1 {[%emt 0:01:03] White must now prevent ...Rf1+.} 65. Ng3 {[%emt 0:01:12] Against Rf1+} Re1 {[%emt 0:01:49]} 66. Ra3 {[%emt 0:00:36]} Nd2+ {[%emt 0:00:35]} 67. Kf2 {[%emt 0:00:04]} Re6 {[%emt 0:00:05]} 68. Ra5 {[%emt 0:00:26]} f4 {[%emt 0:00:19]} (68... Ne4+ $1 $17 69. Nxe4 Rxe4) 69. Ne2 $2 {[%emt 0:00:38][%mdl 8192]} ({White should try} 69. h4 $1 $15) 69... Re3 $19 {[%emt 0:00:56]} 70. Ng1 {[%emt 0:01:05]} (70. Ra4 $142 Ne4+ 71. Kf1) 70... Ne4+ {[%emt 0:00:53]} 71. Kg2 {[%emt 0:00:28]} Rg3+ {[%emt 0:00:19]} 72. Kf1 {[%emt 0:00:13] [#]} Rb3 $2 {[%emt 0:00:56]} (72... f3 $1 $19 {( -> ...Nd2+)} 73. Nxf3 Rxf3+ 74. Kg2 Rf2+ 75. Kg1 Rd2) 73. Ra6+ {[%emt 0:00:45]} (73. Kg2 $17 {was called for.}) 73... Kh5 {[%emt 0:00:14] Strongly threatening ...f3.} 74. Ra8 $2 {[%emt 0:00:10][%mdl 8192]} (74. Re6 $17) 74... Rb2 $2 {[%emt 0:00:34]} (74... f3 $19 {[%cal Rb3b1] and Black stays clearly on top.} 75. Rh8+ Kg6 76. Nxf3 Rxf3+ 77. Kg2 Rg3+ 78. Kh2 Rd3 79. Rg8+ Kf7) 75. Rh8+ {[%emt 0:00:56]} Kg6 {[%emt 0:00:02][%cal Of4f3] ...f3! is the strong threat.} 76. Re8 {[%emt 0:00:27]} Ng3+ {[%emt 0:00:58]} 77. Ke1 {[%emt 0:00:00]} Nh5 {[%emt 0:00:42]} (77... Rb3 $17 {aiming for ...f3.} 78. Kf2 Rb2+ 79. Ke1 Kf7) 78. Nf3 $15 {[%emt 0:00:36]} Rb5 {[%emt 0:00:14]} 79. Rg8+ {[%emt 0:00:42] [#]} Kf6 {[%emt 0:00:16]} ({Black should play} 79... Ng7 $1 $17 80. Ke2 Rd5) 80. h4 $1 $11 {[%emt 0:00:33] The position is equal.} Rb1+ {[%emt 0:00:19]} 81. Kf2 {[%emt 0:00:14]} Rb2+ {[%emt 0:00:11]} 82. Kg1 {[%emt 0:00:57]} gxh4 {[%emt 0:00:20]} 83. Nxh4 {[%emt 0:00:01]} Ng3 {[%emt 0:00:21]} 84. Nf3 {[%emt 0:00:50]} Ke6 {[%emt 0:00:46]} 85. Rf8 {[%emt 0:00:19]} Kd5 {[%emt 0:01:04]} 86. Re8 {[%emt 0:00:30]} Ra2 {[%emt 0:01:07]} 87. Re7 {[%emt 0:00:36]} Kc4 {[%emt 0:00:33]} 88. Ng5 {[%emt 0:00:41]} Rd2 {[%emt 0:00:53]} 89. Rc7+ {[%emt 0:00:23]} Kb4 {[%emt 0:00:15]} 90. Rf7 {[%emt 0:00:25]} Kb3 {[%emt 0:00:31] White happily takes the draw.  Weighted Error Value: White=0.43/Black=0.34} 1/2-1/2

[Event "26th Womens ECCC 2022"]
[Site "Mayrhofen"]
[Date "2022.10.03"]
[Round "1.4"]
[White "Paehtz, Elisabeth"]
[Black "Vidic, Teja"]
[Result "1-0"]
[ECO "B15"]
[WhiteElo "2469"]
[BlackElo "2126"]
[Annotator "TA"]
[PlyCount "61"]
[EventDate "2022.10.03"]
[EventType "team-tourn"]
[EventCountry "AUT"]
[SourceTitle "playchess.com"]
[Source "ChessBase"]
[SourceQuality "1"]
[TimeControl "40/5400+30:1800+30"]

{[%evp 14,60,29,29,31,23,51,36,52,53,70,65,75,67,67,46,46,44,106,75,66,56,130,91,167,72,229,251,228,225,515,479,499,481,29983,29984,29984,29985,29985,29986,29970,29967,29993,29992,29994,29995,29998,29999,29999]} 1. e4 {[%emt 0:00:03]} c6 {[%emt 0:00:06]} 2. d4 {[%emt 0:00:03]} d5 {[%emt 0:00:06]} 3. Nc3 {[%emt 0:00:03]} dxe4 {[%emt 0:00:08]} 4. Nxe4 {[%emt 0:00:04]} Nf6 {[%emt 0:00:08]} 5. Nxf6+ {[%emt 0:00:04]} exf6 {[%emt 0:00:07]} 6. c3 {[%emt 0:00:05]} Bd6 {[%emt 0:00:13]} 7. Bd3 {[%emt 0:00:06]} O-O {[%emt 0:00:05]} 8. Qc2 {[%emt 0:00:02] Active counter play!} Re8+ {[%emt 0:00:06] B15: Caro-Kann: 3 Nc3: 3...g6 and 3...dxe4 4 Nxe4 Nf6 5 Nxf6+ exf6.} 9. Ne2 {[%emt 0:00:03]} h5 {[%emt 0:00:05]} 10. O-O {[%emt 0:00:07]} Qc7 {[%emt 0:04:01] White is slightly better.} 11. h3 {[%emt 0:04:03]} h4 {[%emt 0:00:05]} 12. Bd2 {[%emt 0:02:21]} (12. c4 {feels hotter.} Qd7 13. Re1 Na6 14. a3) 12... Nd7 {[%emt 0:03:02]} 13. Rae1 {[%emt 0:00:24][%cal Oe2f4]} Nf8 {[%emt 0:01:12]} 14. Kh1 {[%emt 0:13:31]} Bd7 {[%emt 0:06:41]} 15. c4 {[%emt 0:01:58]} Rad8 {[%emt 0:09:58] [#]} (15... Qc8 $14) 16. f4 $146 {[%emt 0:06:43] c5 is the strong threat.} ({Predecessor:} 16. c5 Be7 17. f4 f5 18. Bxf5 Bxf5 19. Qxf5 Bf6 20. Qg4 Re4 21. Qf3 Rde8 22. Nc3 Rxe1 23. Rxe1 Rxe1+ 24. Bxe1 Bxd4 25. Bxh4 Bxc5 {½-½ (32) Christiansen,J (2525)-Dragnev,V (2508) Batumi 2018}) 16... Qc8 {[%emt 0:11:30][%cal Od7h3]} 17. f5 {[%emt 0:02:53]} Re7 {[%emt 0:05:20]} (17... Bb8 $14) 18. Nc3 {[%emt 0:01:50] Black must now prevent Ne4.} Rde8 {[%emt 0:05:45]} (18... Rxe1 $16 19. Bxe1 (19. Rxe1 Bb8 $14) 19... Bb8) 19. Ne4 {[%emt 0:09:41]} (19. Rxe7 $18 {has better winning chances.} Rxe7 20. Qd1) 19... Qb8 {[%emt 0:03:59] This costs Black the game.} (19... Bb8 $16 {was called for.}) 20. Qd1 $18 {[%emt 0:04:11]} c5 {[%emt 0:04:39]} 21. Qg4 {[%emt 0:03:24] [#] Nxf6+ would kill now.} ({Don't play} 21. Nxc5 $6 Bxc5 22. dxc5 Rxe1 23. Rxe1 Bc6 $16) (21. dxc5 Be5 22. b4 Qc7) 21... Nh7 {[%emt 0:01:14]} (21... Ng6 22. Qf3 (22. Nxc5 Bxc5 23. Rxe7 Rxe7 $11) (22. dxc5 Be5 $18) 22... Nf8) 22. Bh6 {[%emt 0:06:27][%csl Gh6][%cal Rg4g7]} g6 {[%emt 0:07:23]} 23. Qxh4 {[%emt 0:03:53]} Bg3 {[%emt 0:00:06]} (23... Rxe4 $18 24. Rxe4 g5) 24. Nxf6+ {[%emt 0:01:03] White mates.} Kh8 {[%emt 0:00:04] [#]} 25. Bg7+ $1 {[%emt 0:02:48][%mdl 512]} Kxg7 {[%emt 0:00:06]} 26. Qxh7+ {[%emt 0:00:05]} Kxf6 {[%emt 0:00:07]} 27. fxg6+ {[%emt 0:00:04]} Kg5 {[%emt 0:01:48]} 28. Rxe7 {[%emt 0:03:17][%mdl 64] Remove Defender} Rxe7 {[%emt 0:03:17]} 29. gxf7 {[%emt 0:00:04]} Re1 {[%emt 0:01:56]} 30. Qg6+ {[%emt 0:00:07]} Kh4 {[%emt 0:00:02]} 31. Qh6# {Weighted Error Value: White=0.08 (flawless) /Black=0.58} 1-0

[Event "26th Womens ECCC 2022"]
[Site "Mayrhofen"]
[Date "2022.10.03"]
[Round "1.5"]
[White "Saduakassova, Dinara"]
[Black "Eric, Jovana"]
[Result "1-0"]
[ECO "D10"]
[WhiteElo "2434"]
[BlackElo "2252"]
[Annotator "TA"]
[PlyCount "117"]
[EventDate "2022.10.03"]
[EventType "team-tourn"]
[EventCountry "AUT"]
[SourceTitle "playchess.com"]
[Source "ChessBase"]
[SourceQuality "1"]
[TimeControl "40/5400+30:1800+30"]

{[%evp 17,117,30,34,26,45,61,58,0,79,56,41,20,12,20,20,6,22,36,81,69,77,77,183,138,159,143,148,142,150,159,162,151,150,156,152,156,146,141,138,116,120,127,118,120,121,116,125,114,225,225,225,225,225,221,223,221,281,281,281,281,282,278,282,278,278,278,267,243,366,366,352,313,313,313,313,313,298,283,345,330,323,316,308,294,674,658,589,517,371,243,1452,1203,8061,4663,12061,12329,11019,10700,6179,6081,1010,785]} 1. c4 {[%emt 0:00:15]} c6 {[%emt 0:00:22]} 2. d4 {[%emt 0:00:56]} d5 {[%emt 0:00:21]} 3. cxd5 {[%emt 0:00:05]} cxd5 {[%emt 0:00:04]} 4. Bf4 {[%emt 0:00:07]} Nc6 {[%emt 0:00:37]} 5. e3 {[%emt 0:00:14]} Nf6 {[%emt 0:00:50]} 6. Nc3 {[%emt 0:00:14]} e6 {[%emt 0:00:39]} 7. Nf3 {[%emt 0:02:08]} Be7 {[%emt 0:01:29]} 8. h3 {[%emt 0:04:20]} O-O {[%emt 0:03:46]} 9. Bd3 {[%emt 0:01:36]} Qb6 {[%emt 0:03:18]} 10. a3 {[%emt 0:06:24] D13: Slav Defence: Exchange variation without ...Bf5.} Bd7 {[%emt 0:03:01]} (10... Qxb2 $2 11. Na4 Qxa3 12. Rxa3 Bxa3 13. Ne5 $18) 11. Na4 {[%emt 0:07:08]} Qd8 {[%emt 0:01:12]} 12. Nc5 {[%emt 0:03:55] [#] Inhibits Ne4.} (12. O-O $14) 12... Be8 $146 {[%emt 0:14:46]} (12... Bxc5 $11 {keeps the balance.} 13. dxc5 Re8) ({Predecessor:} 12... Qb6 13. b4 Rfc8 14. O-O Be8 15. Qb3 a5 16. Na4 Qd8 17. b5 Na7 18. b6 Bxa4 19. Qxa4 Qxb6 {1-0 (61) Calvo Sanchez,J (2245)-Kirov,N (2470) Cannes 1992}) 13. O-O {[%emt 0:05:54]} b6 {[%emt 0:01:53]} 14. Na6 {[%emt 0:01:43][%cal Bc5a6,Ba6c7,Bc7b5][%mdl 32] Strongly threatening Nc7.} Bd6 {[%emt 0:02:05] Prevents Nc7.} 15. Rc1 {[%emt 0:06:40]} Bxf4 {[%emt 0:07:21]} 16. exf4 {[%emt 0:00:12]} Qd6 {[%emt 0:05:39]} 17. Ne5 {[%emt 0:04:54]} Rd8 {[%emt 0:19:50]} 18. Bb5 {[%emt 0:01:49][%cal Rb5c6] White now steadily converts the win.} Ne7 {[%emt 0:02:55]} 19. Nc7 {[%emt 0:01:48]} Ng6 {[%emt 0:16:10]} (19... Bd7 $16 {is a better defense.}) 20. Bxe8 {[%emt 0:01:23]} Nxe8 {[%emt 0:00:04]} 21. Nb5 {[%emt 0:00:13][%csl LRa7,LRd6] White has more active pieces.} Qe7 {[%emt 0:02:17]} 22. Nc6 {[%emt 0:00:17][%csl LRa7,LRd8,LRe7]} Qd7 {[%emt 0:00:04]} 23. f5 {[%emt 0:06:36]} (23. Nbxa7 $6 Ra8 $11) 23... exf5 {[%emt 0:01:15]} 24. Nxd8 {[%emt 0:00:18] Hoping for Nc6.} Qxb5 {[%emt 0:00:12]} 25. Nc6 {[%emt 0:02:00][%cal Bd8c6,Bc6a7,Ba7c8][%mdl 32]} Qxb2 {[%emt 0:01:16]} 26. Qf3 {[%emt 0:05:12]} ({Much less strong is} 26. Nxa7 Qxa3 27. Nb5 Qe7 $16) 26... Nf6 {[%emt 0:01:44]} 27. Nxa7 {[%emt 0:06:32]} Qxd4 {[%emt 0:00:33]} 28. Qxf5 {[%emt 0:01:06]} Qa4 {[%emt 0:00:47][%csl LRa3,LRa7]} 29. Nc8 {[%emt 0:01:35]} Qxa3 {[%emt 0:01:18]} 30. Nxb6 {[%emt 0:00:30]} Qd6 {[%emt 0:00:45] [#]} 31. Nc8 {[%emt 0:01:27]} Qb8 {[%emt 0:01:13]} 32. Rfe1 {[%emt 0:10:28][%cal Bf1e1,Be1e7,Be7c7,Bc7c8,Bc8f8][%mdl 32]} d4 {[%emt 0:02:58]} (32... Qb7 $16 {was necessary.}) 33. Ne7+ $18 {[%emt 0:02:25]} Nxe7 {[%emt 0:00:05]} 34. Rxe7 {[%emt 0:00:06]} Qd6 {[%emt 0:00:41]} 35. Qc5 {[%emt 0:02:08]} Qxc5 {[%emt 0:01:14]} 36. Rxc5 {[%emt 0:00:05][%mdl 4096] Endgame KRR-KRN} Rd8 {[%emt 0:00:12]} 37. Rec7 {[%emt 0:01:01]} d3 {[%emt 0:04:55] And now ...d2 would win.} 38. Rc8 {[%emt 0:00:09]} Rf8 {[%emt 0:00:04] [#]} 39. Rxf8+ $1 {[%emt 0:00:53]} Kxf8 {[%emt 0:00:03] KR-KN} 40. Rc3 {[%emt 0:00:40]} d2 {[%emt 0:00:09]} 41. Rd3 {[%emt 0:30:04]} Ne4 {[%emt 0:30:25]} 42. h4 {[%emt 0:07:21]} h5 {[%emt 0:00:00]} (42... g6 {was called for.} 43. f3 Ng3 44. Rxd2 h5) 43. g3 {[%emt 0:00:00]} ({Don't play} 43. f3 Ng3 44. Rxd2 g6 $18) 43... Ke7 {[%emt 0:00:00]} 44. Kg2 {[%emt 0:00:00]} Ke6 {[%emt 0:00:00]} 45. f3 {[%emt 0:00:00]} Nd6 {[%emt 0:00:00]} 46. Rxd2 {[%emt 0:00:00]} Nf5 {[%emt 0:00:00]} 47. Ra2 {[%emt 0:00:00]} g6 {[%emt 0:00:00]} 48. Ra5 {[%emt 0:00:00]} Kf6 {[%emt 0:00:00]} 49. Ra6+ {[%emt 0:00:00]} Kg7 {[%emt 0:00:00]} 50. Kf2 {[%emt 0:00:00]} f6 $2 {[%emt 0:00:00]} (50... Kf8 51. Ra5 Kg7) 51. Ra7+ {[%emt 0:00:00]} Kg8 {[%emt 0:00:00]} 52. Kg2 {[%emt 0:00:00]} Kf8 {[%emt 0:00:00]} 53. Kh3 {[%emt 0:00:00] Threatens to win with g4.} Kg8 $2 {[%emt 0:00:10]} (53... Nd4 54. Ra4 Nxf3) 54. g4 {[%emt 0:00:00] White is clearly winning.} Ng7 {[%emt 0:00:26]} 55. Kg3 {[%emt 0:00:00]} f5 {[%emt 0:01:22]} 56. g5 {[%emt 0:00:00] White threatens Kf4 and mate.} Ne6 {[%emt 0:00:15]} 57. Re7 {[%emt 0:00:00]} f4+ {[%emt 0:01:39]} 58. Kf2 {[%emt 0:00:00]} Nc5 {[%emt 0:01:01]} 59. Ke2 {[%emt 0:00:00] Weighted Error Value: White=0.10 (very precise) /Black=0.25 (precise)} 1-0